bitfinex-derivatives/quotes_BNBF0:USTF0_20250507
["timestamp","ask_amount","ask_price","bid_price","bid_amount"]
[1746599480208,0.30471144,603.75,603.16,1.264]
[1746599482213,0.30471144,603.77,603.16,1.264]
[1746599483514,0.30471144,603.77,603.16,1.859]
[1746599483714,0.30471144,603.77,603.16,1.191]
[1746599483915,0.28844361,603.76,603.16,1.191]
[1746599484215,0.30471144,603.75,603.16,1.191]
[1746599488716,0.30471144,603.77,603.16,1.191]
[1746599491224,0.28844361,603.76,603.16,1.191]
[1746599491719,0.30471144,603.75,603.16,1.191]
[1746599493026,0.28844361,603.76,603.16,1.191]
[1746599493326,0.30471098,603.75,603.16,1.191]
[1746599497431,0.30471098,603.77,603.16,1.191]
[1746599498131,0.28844361,603.76,603.16,1.191]
[1746599498428,0.30471098,603.75,603.16,1.191]
[1746599500529,0.30471098,603.77,603.16,1.191]
[1746599501535,0.28844361,603.76,603.16,1.191]
[1746599501736,0.30471098,603.75,603.16,1.191]
[1746599502037,0.28844361,603.76,603.16,1.191]
[1746599502532,0.30471254,603.75,603.16,1.191]
[1746599503436,0.30471254,603.77,603.16,1.191]
[1746599504739,0.28844361,603.76,603.16,1.191]
[1746599505140,0.30471254,603.75,603.16,1.191]
[1746599509545,0.30471254,603.77,603.16,1.191]
[1746599510543,0.28843882,603.76,603.16,1.191]
[1746599510841,0.30471254,603.75,603.16,1.191]
[1746599512543,0.30471254,603.77,603.16,1.191]
[1746599513342,0.28843882,603.76,603.16,1.191]
[1746599513846,0.30469157,603.75,603.16,1.191]
[1746599515548,0.30469157,603.77,603.16,1.191]
[1746599516149,0.28843882,603.76,603.16,1.191]
[1746599516545,0.30469157,603.75,603.16,1.191]
[1746599518754,0.30469157,603.77,603.16,1.191]
[1746599519052,0.28844122,603.74,603.16,1.191]
[1746599519352,0.28844122,603.74,603.16,0.595]
[1746599519747,0.30469157,603.73,603.16,0.595]
[1746599521252,0.30469157,603.77,603.16,0.595]
[1746599522053,0.28843882,603.76,603.16,0.595]
[1746599522553,0.30469157,603.75,603.16,0.595]
[1746599522953,0.30469157,603.75,603.16,1.173]
[1746599524956,0.28843882,603.74,603.16,1.173]
[1746599525556,0.30469157,603.73,603.16,1.173]
[1746599526258,0.28843882,603.74,603.16,1.173]
[1746599527058,0.33124648,603.78,603.16,1.173]
[1746599527259,0.30468848,603.73,603.16,1.173]
[1746599527455,0.30468848,603.77,603.16,1.173]
[1746599527960,0.28843404,603.76,603.16,1.173]
[1746599528458,0.30468848,603.75,603.16,1.173]
[1746599530660,0.30468848,603.77,603.16,1.173]
[1746599530859,0.28843404,603.74,603.16,1.173]
[1746599531358,0.30468848,603.73,603.16,1.173]
[1746599531955,0.28843404,603.74,603.16,1.173]
[1746599532259,0.30467867,603.73,603.16,1.173]
[1746599533461,0.30467867,603.77,603.16,1.173]
[1746599533860,0.59303384,603.77,603.16,1.173]
[1746599534160,0.30467867,603.76,603.16,1.173]
[1746599535961,0.28835517,603.77,603.16,1.173]
[1746599536160,0.33124648,603.78,603.16,1.173]
[1746599536461,0.30467895,603.77,603.16,1.173]
[1746599536862,0.28843404,603.76,603.16,1.173]
[1746599537061,0.30467895,603.75,603.16,1.173]
[1746599539363,0.30467895,603.77,603.16,1.173]
[1746599540461,0.28844839,603.76,603.16,1.173]
[1746599540758,0.30467895,603.75,603.16,1.173]
[1746599542263,0.30467895,603.77,603.16,1.173]
[1746599542662,0.28844839,603.74,603.16,1.173]
[1746599542862,0.30467895,603.73,603.16,1.173]
[1746599543064,0.30467895,603.73,601.86,1.05163769]
[1746599543264,0.30467895,603.73,601.88,0.33229215]
[1746599544565,0.28844839,603.74,601.88,0.33229215]
[1746599544758,0.28844839,603.74,601.89,0.288635]
[1746599544963,0.30470699,603.73,601.89,0.288635]
[1746599545260,0.30470699,603.73,601.88,0.33229215]
[1746599545464,0.30470699,603.77,601.88,0.33229215]
[1746599545764,0.28863021,603.72,601.89,1.36263021]
[1746599545965,0.28863021,603.72,601.91,0.33227558]
[1746599546165,0.30470699,603.71,601.91,0.33227558]
[1746599546566,0.30470699,603.71,601.91,0.92627558]
[1746599548472,0.30470699,603.77,601.91,0.92627558]
[1746599549066,0.2885979,603.7,601.91,0.92627558]
[1746599551170,0.33124648,603.78,601.91,0.92627558]
[1746599551670,0.30470699,603.77,601.91,0.92627558]
[1746599552565,0.2885979,603.76,601.91,0.92627558]
[1746599552870,0.30470699,603.75,601.91,0.92627558]
[1746599554372,0.30470699,603.77,601.91,0.92627558]
[1746599555268,0.2885979,603.76,601.91,0.92627558]
[1746599555472,0.30470699,603.75,601.91,0.92627558]
[1746599557475,0.33124648,603.78,601.91,0.92627558]
[1746599557975,0.28852492,603.77,601.91,0.92627558]
[1746599560279,0.33124648,603.78,601.91,0.92627558]
[1746599560778,0.28849023,603.77,601.91,0.92627558]
[1746599563080,0.30470685,603.76,601.91,0.92627558]
[1746599563981,0.30470685,603.77,601.91,0.92627558]
[1746599564281,0.2885979,603.75,601.91,0.92627558]
[1746599566183,0.33124648,603.78,601.91,0.92627558]
[1746599566683,0.30470326,603.77,601.91,0.92627558]
[1746599567378,0.2885979,603.76,601.91,0.92627558]
[1746599567585,0.2885979,603.76,601.91,1.60627558]
[1746599568087,0.30470326,603.75,601.91,1.60627558]
[1746599569084,0.30470326,603.75,601.91,2.27627558]
[1746599569387,0.30470326,603.77,601.91,2.27627558]
[1746599569987,0.2885979,603.76,601.91,2.27627558]
[1746599570286,0.30470326,603.75,601.91,2.27627558]
[1746599572388,0.30470326,603.77,601.91,2.27627558]
[1746599573088,0.2885979,603.76,601.91,2.27627558]
[1746599573283,0.30470326,603.75,601.91,2.27627558]
[1746599575695,0.30470326,603.77,601.91,2.27627558]
[1746599576796,0.2885979,603.76,601.91,2.27627558]
[1746599577295,0.30470326,603.75,601.91,2.27627558]
[1746599579396,0.2885979,603.76,601.91,2.27627558]
[1746599579590,0.3047166,603.75,601.91,2.27627558]
[1746599580298,0.3047166,603.75,601.91,2.97027558]
[1746599581298,0.3047166,603.77,601.91,2.97027558]
[1746599581998,0.28861704,603.76,601.91,2.97027558]
[1746599582197,0.3047166,603.75,601.91,2.97027558]
[1746599582598,0.28861704,603.76,601.91,2.97027558]
[1746599582800,0.30476445,603.74,601.91,2.97027558]
[1746599582999,0.30476445,603.75,601.91,2.97027558]
[1746599584295,0.30476445,603.77,601.91,2.97027558]
[1746599585196,0.28862901,603.76,601.91,2.97027558]
[1746599585397,0.33126293,603.75,601.91,2.97027558]
[1746599586501,0.30478104,603.74,601.91,2.97027558]
[1746599586802,0.33127391,603.73,601.91,2.97027558]
[1746599587902,0.30478104,603.72,601.91,2.97027558]
[1746599588094,0.33128488,603.71,601.91,2.97027558]
[1746599588296,0.30478104,603.7,601.91,2.97027558]
[1746599591104,0.28863739,603.69,601.91,2.97027558]
[1746599591501,0.30478104,603.68,601.91,2.97027558]
[1746599593800,0.28863739,603.67,601.91,2.97027558]
[1746599594102,0.59341843,603.67,601.91,2.97027558]
[1746599594302,0.28863739,603.67,601.91,2.97027558]
[1746599594804,0.30477355,603.66,601.91,2.97027558]
[1746599596302,0.30477355,603.7,601.91,2.97027558]
[1746599597605,0.28863739,603.69,601.91,2.97027558]
[1746599597901,0.30477355,603.68,601.91,2.97027558]
[1746599598099,0.33130683,603.67,601.91,2.97027558]
[1746599598702,0.30477355,603.66,601.91,2.97027558]
[1746599599006,0.33131781,603.65,601.91,2.97027558]
[1746599599406,0.30477355,603.64,601.91,2.97027558]
[1746599603006,0.28865894,603.63,601.91,2.97027558]
[1746599603405,0.30477355,603.62,601.91,2.97027558]
[1746599605507,0.33131781,603.65,601.91,2.97027558]
[1746599605508,0.30477355,603.64,601.91,2.97027558]
[1746599605902,0.28866133,603.61,601.91,2.97027558]
[1746599606206,0.30477355,603.6,601.91,2.97027558]
[1746599606508,0.28866133,603.61,601.91,2.97027558]
[1746599606909,0.30478045,603.6,601.91,2.97027558]
[1746599608908,0.30478045,603.64,601.91,2.97027558]
[1746599609504,0.28865894,603.63,601.91,2.97027558]
[1746599609809,0.30478045,603.62,601.91,2.97027558]
[1746599611507,0.30478045,603.64,601.91,2.97027558]
[1746599611809,0.28865894,603.61,601.91,2.97027558]
[1746599612410,0.30478045,603.6,601.91,2.97027558]
[1746599613114,0.28865894,603.61,601.91,2.97027558]
[1746599613412,0.30478042,603.6,601.91,2.97027558]
[1746599614413,0.33135075,603.59,601.91,2.97027558]
[1746599615513,0.28863021,603.58,601.91,2.97027558]
[1746599615811,0.33136173,603.57,601.91,2.97027558]
[1746599617515,0.30485101,603.56,601.91,2.97027558]
[1746599617915,0.59344412,603.56,601.91,2.97027558]
[1746599618316,0.30485101,603.55,601.91,2.97027558]
[1746599618616,0.28859311,603.56,601.91,2.97027558]
[1746599620218,0.33136173,603.57,601.91,2.97027558]
[1746599620519,0.30485639,603.56,601.91,2.97027558]
[1746599621022,0.28868767,603.55,601.91,2.97027558]
[1746599621720,0.3313782,603.54,601.91,2.97027558]
[1746599624023,0.28857516,603.53,601.91,2.97027558]
[1746599624218,0.6362555,603.52,601.91,2.97027558]
[1746599624423,0.30486632,603.51,601.91,2.97027558]
[1746599625924,0.33138918,603.52,601.91,2.97027558]
[1746599626225,0.30486363,603.51,601.91,2.97027558]
[1746599626819,0.59325106,603.51,601.91,2.97027558]
[1746599627027,0.30486363,603.5,601.91,2.97027558]
[1746599627725,0.28838743,603.51,601.91,2.97027558]
[1746599627926,0.30486276,603.5,601.91,2.97027558]
[1746599629324,0.33138918,603.52,601.91,2.97027558]
[1746599629325,0.30486276,603.51,601.91,2.97027558]
[1746599629627,0.33138918,603.52,601.91,2.97027558]
[1746599629826,0.30486305,603.51,601.91,2.97027558]
[1746599630020,0.59346813,603.51,601.91,2.97027558]
[1746599630327,0.30486305,603.5,601.91,2.97027558]
[1746599631528,0.28860508,603.51,601.91,2.97027558]
[1746599631929,0.30486196,603.5,601.91,2.97027558]
[1746599632429,0.30486196,603.51,601.91,2.97027558]
[1746599632729,0.28870564,603.49,601.91,2.97027558]
[1746599635224,0.33138918,603.52,601.91,2.97027558]
[1746599635828,0.28857396,603.51,601.91,2.97027558]
[1746599637730,0.33140016,603.5,601.91,2.97027558]
[1746599639333,0.28854884,603.49,601.91,2.97027558]
[1746599639533,0.33141114,603.48,601.91,2.97027558]
[1746599642136,0.28855004,603.47,601.91,2.97027558]
[1746599642435,0.33142213,603.46,601.91,2.97027558]
[1746599645940,0.28858234,603.45,601.91,2.97027558]
[1746599650140,0.33142213,603.46,601.91,2.97027558]
[1746599650343,0.3048928,603.44,601.91,2.97027558]
[1746599650644,0.3048928,603.45,601.91,2.97027558]
[1746599651546,0.28872719,603.44,601.91,2.97027558]
[1746599652145,0.3048928,603.43,601.91,2.97027558]
[1746599653552,0.3048928,603.45,601.91,2.97027558]
[1746599654155,0.28872719,603.44,601.91,2.97027558]
[1746599654455,0.3048928,603.43,601.91,2.97027558]
[1746599656754,0.3048928,603.45,601.91,2.97027558]
[1746599657056,0.33142213,603.46,601.91,2.97027558]
[1746599657456,0.59355188,603.45,601.91,2.97027558]
[1746599657651,0.30489294,603.44,601.91,2.97027558]
[1746599659652,0.30489294,603.45,601.91,2.97027558]
[1746599659957,0.2887236,603.43,601.91,2.97027558]
[1746599660353,0.30489294,603.42,601.91,2.97027558]
[1746599660952,0.2887236,603.43,601.91,2.97027558]
[1746599661258,0.30489166,603.42,601.91,2.97027558]
[1746599662657,0.30489166,603.45,601.91,2.97027558]
[1746599662858,0.2887224,603.41,601.91,2.97027558]
[1746599663357,0.30489166,603.4,601.91,2.97027558]
[1746599665658,0.2887224,603.39,601.91,2.97027558]
[1746599665958,0.59361406,603.39,601.91,2.97027558]
[1746599666157,0.2887224,603.39,601.91,2.97027558]
[1746599666658,0.30489166,603.38,601.91,2.97027558]
[1746599668463,0.30489166,603.45,601.91,2.97027558]
[1746599669162,0.2887224,603.44,601.91,2.97027558]
[1746599669658,0.30489166,603.43,601.91,2.97027558]
[1746599670058,0.2887224,603.44,601.91,2.97027558]
[1746599670364,0.30489039,603.42,601.91,2.97027558]
[1746599670759,0.30489039,603.43,601.91,2.97027558]
[1746599671663,0.30489039,603.45,601.91,2.97027558]
[1746599671967,0.2887224,603.42,601.91,2.97027558]
[1746599672364,0.30489039,603.41,601.91,2.97027558]
[1746599673467,0.2887224,603.42,601.91,2.97027558]
[1746599673859,0.30488628,603.41,601.91,2.97027558]
[1746599674564,0.30488628,603.45,601.91,2.97027558]
[1746599676265,0.2887224,603.44,601.91,2.97027558]
[1746599676465,0.30488628,603.43,601.91,2.97027558]
[1746599676766,0.2887224,603.44,601.91,2.97027558]
[1746599677166,0.30488529,603.43,601.91,2.97027558]
[1746599677966,0.30488529,603.45,601.91,2.97027558]
[1746599679863,0.2887224,603.44,601.91,2.97027558]
[1746599680368,0.30488628,603.43,601.91,2.97027558]
[1746599683770,0.30488628,603.45,601.91,2.97027558]
[1746599684668,0.2887224,603.44,601.91,2.97027558]
[1746599685163,0.30488628,603.43,601.91,2.97027558]
[1746599686566,0.30488628,603.45,601.91,2.97027558]
[1746599686869,0.28871282,603.42,601.91,2.97027558]
[1746599687370,0.30488628,603.41,601.91,2.97027558]
[1746599689771,0.30488628,603.45,601.91,2.97027558]
[1746599690269,0.28871043,603.4,601.91,2.97027558]
[1746599690871,0.30488628,603.39,601.91,2.97027558]
[1746599692673,0.30488628,603.45,601.91,2.97027558]
[1746599692974,0.28871043,603.38,601.91,2.97027558]
[1746599693367,0.30488628,603.37,601.91,2.97027558]
[1746599695074,0.28871043,603.38,601.91,2.97027558]
[1746599695275,0.33142213,603.46,601.91,2.97027558]
[1746599695574,0.30486484,603.37,601.91,2.97027558]
[1746599695773,0.30486484,603.45,601.91,2.97027558]
[1746599695971,0.59349984,603.45,601.91,2.97027558]
[1746599696476,0.30486484,603.44,601.91,2.97027558]
[1746599698475,0.30486484,603.45,601.91,2.97027558]
[1746599699176,0.28869366,603.44,601.91,2.97027558]
[1746599699377,0.30486484,603.43,601.91,2.97027558]
[1746599701376,0.30486484,603.45,601.91,2.97027558]
[1746599702377,0.28869366,603.44,601.91,2.97027558]
[1746599703077,0.30486484,603.43,601.91,2.97027558]
[1746599704479,0.30486484,603.45,601.91,2.97027558]
[1746599705679,0.28869366,603.44,601.91,2.97027558]
[1746599705973,0.30486484,603.43,601.91,2.97027558]
[1746599706179,0.28869366,603.44,601.91,2.97027558]
[1746599706373,0.30486484,603.43,601.91,2.97027558]
[1746599707778,0.33142213,603.46,601.91,2.97027558]
[1746599708277,0.30486484,603.45,601.91,2.97027558]
[1746599708479,0.59346513,603.45,601.91,2.97027558]
[1746599708981,0.30486484,603.44,601.91,2.97027558]
[1746599713581,0.30486484,603.45,601.91,2.97027558]
[1746599714386,0.59347111,603.45,601.91,2.97027558]
[1746599714685,0.30486484,603.44,601.91,2.97027558]
[1746599716581,0.33142213,603.46,601.91,2.97027558]
[1746599716886,0.28869486,603.43,601.91,2.97027558]
[1746599717281,0.30486498,603.42,601.91,2.97027558]
[1746599719586,0.30486498,603.45,601.91,2.97027558]
[1746599720186,0.28869366,603.44,601.91,2.97027558]
[1746599720786,0.30486498,603.43,601.91,2.97027558]
[1746599722486,0.30486498,603.45,601.91,2.97027558]
[1746599723087,0.28869366,603.44,601.91,2.97027558]
[1746599723386,0.30486498,603.43,601.91,2.97027558]
[1746599725192,0.33142213,603.46,601.91,2.97027558]
[1746599725488,0.30486273,603.45,601.91,2.97027558]
[1746599726486,0.28869366,603.44,601.91,2.97027558]
[1746599726690,0.30486273,603.43,601.91,2.97027558]
[1746599726991,0.28869366,603.44,601.91,2.97027558]
[1746599727589,0.30486515,603.43,601.91,2.97027558]
[1746599728486,0.28869366,603.44,601.91,2.97027558]
[1746599729592,0.30486782,603.43,601.91,2.97027558]
[1746599729993,0.28869366,603.44,601.91,2.97027558]
[1746599730493,0.30486782,603.43,601.91,2.97027558]
[1746599731694,0.30486782,603.45,601.91,2.97027558]
[1746599731994,0.33142213,603.46,601.91,2.97027558]
[1746599732294,0.28870324,603.44,601.91,2.97027558]
[1746599732695,0.30486782,603.43,601.91,2.97027558]
[1746599732999,0.28870324,603.44,601.91,2.97027558]
[1746599734201,0.33142213,603.46,601.91,2.97027558]
[1746599734699,0.30486782,603.45,601.91,2.97027558]
[1746599737604,0.28870324,603.44,601.91,2.97027558]
[1746599738203,0.30486782,603.43,601.91,2.97027558]
[1746599739904,0.28870324,603.44,601.91,2.97027558]
[1746599740102,0.30486752,603.43,601.91,2.97027558]
[1746599740598,0.33142213,603.46,601.91,2.97027558]
[1746599741098,0.304866,603.42,601.91,2.97027558]
[1746599741298,0.304866,603.45,601.91,2.97027558]
[1746599742000,0.593501,603.45,601.91,2.97027558]
[1746599742604,0.304866,603.44,601.91,2.97027558]
[1746599743504,0.304866,603.45,601.91,2.97027558]
[1746599745408,0.28870324,603.44,601.91,2.97027558]
[1746599745807,0.304866,603.43,601.91,2.97027558]
[1746599749507,0.304866,603.45,601.91,2.97027558]
[1746599750606,0.28870324,603.44,601.91,2.97027558]
[1746599751112,0.304866,603.43,601.91,2.97027558]
[1746599755108,0.28870324,603.44,601.91,2.97027558]
[1746599755411,0.30488518,603.43,601.91,2.97027558]
[1746599755712,0.30488518,603.45,601.91,2.97027558]
[1746599756507,0.28871282,603.44,601.91,2.97027558]
[1746599757008,0.30488518,603.43,601.91,2.97027558]
[1746599758715,0.33142213,603.46,601.91,2.97027558]
[1746599758716,0.30488518,603.45,601.91,2.97027558]
[1746599759809,0.28871522,603.42,601.91,2.97027558]
[1746599760116,0.30488518,603.41,601.91,2.97027558]
[1746599764713,0.30488518,603.45,601.91,2.97027558]
[1746599767619,0.28871282,603.44,601.91,2.97027558]
[1746599768021,0.30488518,603.43,601.91,2.97027558]
[1746599772826,0.30488518,603.45,601.91,2.97027558]
[1746599778431,0.33142213,603.46,601.91,2.97027558]
[1746599784033,0.28856918,603.45,601.91,2.97027558]
[1746599785033,1.2628895,604.41,601.91,2.97027558]
[1746599785332,0.33096691,604.29,601.91,2.97027558]
[1746599785931,0.30476902,604.28,601.91,2.97027558]
[1746599786231,0.30476902,604.27,601.91,2.97027558]
[1746599786732,0.30476902,604.26,601.91,2.97027558]
[1746599786927,0.33096691,604.29,601.91,2.97027558]
[1746599787231,0.30473566,604.28,601.91,2.96023655]
[1746599787731,0.30473566,604.27,601.91,2.96023655]
[1746599788031,0.30473566,604.26,601.91,2.96023655]
[1746599788332,0.30473566,604.25,601.91,2.96023655]
[1746599788633,0.33096691,604.29,601.91,2.96023655]
[1746599788933,0.30472193,604.28,601.91,2.96023655]
[1746599789335,1.56761143,604.27,601.91,2.96023655]
[1746599789729,0.30472193,604.26,601.91,2.96023655]
[1746599789932,0.33098882,604.25,601.91,2.96023655]
[1746599790134,0.92425002,604.25,601.91,2.96023655]
[1746599790330,0.30472193,604.24,601.91,2.96023655]
[1746599790752,0.30472193,604.23,601.91,2.96023655]
[1746599791152,0.30472193,604.22,601.91,2.96023655]
[1746599791347,0.30472193,604.21,601.91,2.96023655]
[1746599791743,0.30472193,604.2,601.91,2.96023655]
[1746599792140,0.30472193,604.19,601.91,2.96023655]
[1746599792337,0.59326359,604.19,601.91,2.96023655]
[1746599792536,0.33103265,604.17,601.91,2.96023655]
[1746599792930,0.30472193,604.16,601.91,2.96023655]
[1746599793235,0.33104909,604.14,601.91,2.96023655]
[1746599793832,0.30472193,604.13,601.91,2.96023655]
[1746599794031,0.33106553,604.11,601.91,2.96023655]
[1746599794429,0.30472193,604.1,601.91,2.96023655]
[1746599794633,0.33108197,604.08,601.91,2.96023655]
[1746599795136,0.30472193,604.07,601.91,2.96023655]
[1746599795335,0.33109841,604.05,601.91,2.96023655]
[1746599795635,0.30472193,604.04,601.91,2.96023655]
[1746599795835,0.33111486,604.02,601.91,2.96023655]
[1746599796334,0.30472193,604.01,601.91,2.96023655]
[1746599796630,0.33111486,604.02,601.91,2.96023655]
[1746599796631,0.33113131,603.99,601.91,2.96023655]
[1746599796934,0.30472193,603.98,601.91,2.96023655]
[1746599797131,0.33114775,603.96,601.91,2.96023655]
[1746599797534,0.30472193,603.95,601.91,2.96023655]
[1746599797737,0.59331265,603.95,601.91,2.96023655]
[1746599798038,0.63588065,603.94,601.91,2.96023655]
[1746599798236,0.3311642,603.93,601.91,2.96023655]
[1746599798437,0.63588613,603.93,601.91,2.96023655]
[1746599798939,0.30472193,603.92,601.91,2.96023655]
[1746599799134,0.33117517,603.91,601.91,2.96023655]
[1746599799541,0.30475698,603.9,601.91,2.96023655]
[1746599799836,0.33118614,603.89,601.91,2.96023655]
[1746599800140,0.30475698,603.88,601.91,2.96023655]
[1746599800435,0.33119711,603.87,601.91,2.96023655]
[1746599800841,0.30475698,603.86,601.91,2.96023655]
[1746599801041,0.33120808,603.85,601.91,2.96023655]
[1746599801542,0.30475698,603.84,601.91,2.96023655]
[1746599801742,0.33121905,603.83,601.91,2.96023655]
[1746599802643,0.30475698,603.82,601.91,2.96023655]
[1746599802840,0.33123002,603.81,601.91,2.96023655]
[1746599803340,0.30475698,603.8,601.91,2.96023655]
[1746599806449,0.33124099,603.79,601.91,2.96023655]
[1746599806949,0.59339317,603.78,601.91,2.96023655]
[1746599807246,0.30475698,603.77,601.91,2.96023655]
[1746599807642,0.33125745,603.76,601.91,2.96023655]
[1746599808047,0.30475698,603.75,601.91,2.96023655]
[1746599808242,0.33126842,603.74,601.91,2.96023655]
[1746599808749,0.30475698,603.73,601.91,2.96023655]
[1746599808942,0.3312794,603.72,601.91,2.96023655]
[1746599809446,0.30475698,603.71,601.91,2.96023655]
[1746599809747,0.33129037,603.7,601.91,2.96023655]
[1746599809947,0.61994332,603.7,601.91,2.96023655]
[1746599810148,0.30475698,603.69,601.91,2.96023655]
[1746599810348,0.33130135,603.68,601.91,2.96023655]
[1746599810749,0.30475698,603.67,601.91,2.96023655]
[1746599811553,0.33131232,603.66,601.91,2.96023655]
[1746599811751,0.30475698,603.65,601.91,2.96023655]
[1746599811952,0.3313233,603.64,601.91,2.96023655]
[1746599812351,0.30475698,603.63,601.91,2.96023655]
[1746599812952,0.28866253,603.62,601.91,2.96023655]
[1746599813452,0.30480858,603.61,601.91,2.96023655]
[1746599815752,0.30480858,603.63,601.91,2.96023655]
[1746599816054,0.28866492,603.6,601.91,2.96023655]
[1746599816253,0.30480858,603.59,601.91,2.96023655]
[1746599821965,0.28866253,603.58,601.91,2.96023655]
[1746599822366,0.30480562,603.57,601.91,2.96023655]
[1746599824768,0.30480562,603.63,601.91,2.96023655]
[1746599826069,0.28866253,603.62,601.91,2.96023655]
[1746599826465,0.30480562,603.61,601.91,2.96023655]
[1746599827565,0.30480562,603.63,601.91,2.96023655]
[1746599828369,0.28866253,603.62,601.91,2.96023655]
[1746599828766,0.30480562,603.61,601.91,2.96023655]
[1746599829472,0.28866253,603.62,601.91,2.96023655]
[1746599829771,0.3048161,603.61,601.91,2.96023655]
[1746599830472,0.3048161,603.63,601.91,2.96023655]
[1746599831571,0.28866253,603.62,601.91,2.96023655]
[1746599831771,0.3048161,603.61,601.91,2.96023655]
[1746599832877,0.33134526,603.6,601.91,2.96023655]
[1746599833174,0.3048161,603.59,601.91,2.96023655]
[1746599833374,0.33135624,603.58,601.91,2.96023655]
[1746599833675,0.30485726,603.57,601.91,2.96023655]
[1746599834175,0.33136722,603.56,601.91,2.96023655]
[1746599834676,0.30485726,603.55,601.91,2.96023655]
[1746599834877,0.63622997,603.55,601.91,2.96023655]
[1746599835279,0.30485726,603.54,601.91,2.96023655]
[1746599837882,0.28869486,603.53,601.91,2.96023655]
[1746599838281,0.30485726,603.52,601.91,2.96023655]
[1746599840883,0.28869486,603.53,601.91,2.96023655]
[1746599841182,0.30486602,603.52,601.91,2.96023655]
[1746599842483,0.30486602,603.54,601.91,2.96023655]
[1746599843086,0.28870683,603.53,601.91,2.96023655]
[1746599843481,0.30486602,603.52,601.91,2.96023655]
[1746599844987,0.33139467,603.51,601.91,2.96023655]
[1746599845983,0.30486602,603.5,601.91,2.96023655]
[1746599846984,0.28872121,603.49,601.91,2.96023655]
[1746599847187,0.30486602,603.48,601.91,2.96023655]
[1746599847387,0.28872121,603.49,601.91,2.96023655]
[1746599847688,0.304908,603.48,601.91,2.96023655]
[1746599848789,0.304908,603.5,601.91,2.96023655]
[1746599848990,0.28872121,603.47,601.91,2.96023655]
[1746599849291,0.304908,603.46,601.91,2.96023655]
[1746599849493,0.63633013,603.46,601.91,2.96023655]
[1746599849787,0.304908,603.45,601.91,2.96023655]
[1746599851996,0.28872719,603.44,601.91,2.96023655]
[1746599852797,0.30490639,603.43,601.91,2.96023655]
[1746599854997,0.28872719,603.42,601.91,2.96023655]
[1746599856600,0.30490705,603.41,601.91,2.96023655]
[1746599857702,0.28872719,603.4,601.91,2.96023655]
[1746599857896,0.30490705,603.39,601.91,2.96023655]
[1746599860603,0.33142213,603.46,601.91,2.96023655]
[1746599861300,0.5935449,603.45,601.91,2.96023655]
[1746599861700,0.30490511,603.44,601.91,2.96023655]
[1746599862004,0.28863979,603.45,601.91,2.96023655]
[1746599862199,0.30490482,603.44,601.91,2.96023655]
[1746599863707,0.30490482,603.45,601.91,2.96023655]
[1746599864304,0.28872719,603.44,601.91,2.96023655]
[1746599864505,0.30490482,603.43,601.91,2.96023655]
[1746599866207,0.33142213,603.46,601.91,2.96023655]
[1746599867006,0.28863141,603.45,601.91,2.96023655]
[1746599869306,0.33142213,603.46,601.91,2.96023655]
[1746599870008,0.28854047,603.45,601.91,2.96023655]
[1746599872310,0.33142213,603.46,601.91,2.96023655]
[1746599873211,0.28872001,603.44,601.91,2.96023655]
[1746599875314,0.33142213,603.46,601.91,2.96023655]
[1746599876210,0.288562,603.45,601.91,2.96023655]
[1746599878015,0.30489753,603.44,601.91,2.96023655]
[1746599878614,0.30489753,603.45,601.91,2.96023655]
[1746599879416,0.28872719,603.44,601.91,2.96023655]
[1746599879717,0.30489753,603.43,601.91,2.96023655]
[1746599881517,0.30489753,603.45,601.91,2.96023655]
[1746599882517,0.28872719,603.44,601.91,2.96023655]
[1746599882921,0.30489753,603.43,601.91,2.96023655]
[1746599884526,0.30489753,603.45,601.91,2.96023655]
[1746599885427,0.28872719,603.44,601.91,2.96023655]
[1746599885822,0.30489753,603.43,601.91,2.96023655]
[1746599887722,0.30489753,603.45,601.91,2.96023655]
[1746599889524,0.28872719,603.44,601.91,2.96023655]
[1746599890229,0.30488548,603.43,601.91,2.96023655]
[1746599893235,0.28872719,603.44,601.91,2.96023655]
[1746599894135,0.30481969,603.43,601.91,2.96023655]
[1746599895734,0.28872719,603.44,601.91,2.96023655]
[1746599896036,0.30483291,603.43,601.91,2.96023655]
[1746599896536,0.30483291,603.45,601.91,2.96023655]
[1746599897537,0.28868887,603.42,601.91,2.96023655]
[1746599897738,0.30483291,603.41,601.91,2.96023655]
[1746599899837,0.30483291,603.45,601.91,2.96023655]
[1746599900939,0.28868887,603.44,601.91,2.96023655]
[1746599901435,0.30483291,603.43,601.91,2.96023655]
[1746599903836,0.28868887,603.44,601.91,2.96023655]
[1746599904039,0.30483317,603.43,601.91,2.96023655]
[1746599905638,0.30483317,603.45,601.91,2.96023655]
[1746599907641,0.28868887,603.44,601.91,2.96023655]
[1746599907940,0.30483317,603.43,601.91,2.96023655]
[1746599909534,0.28868887,603.44,601.91,2.96023655]
[1746599911343,0.33142213,603.46,601.91,2.96023655]
[1746599911737,0.30483758,603.45,601.91,2.96023655]
[1746599912746,0.28869127,603.44,601.91,2.96023655]